bitfinex-derivatives/quotes_BTCF0:USTF0_20250930
["timestamp","ask_amount","ask_price","bid_price","bid_amount"]
[1759193361785,0.10273254,114480.0,114470.0,1.42934084]
[1759193362078,0.10273254,114480.0,114470.0,2.22798084]
[1759193362282,0.10273254,114480.0,114470.0,2.22715272]
[1759193362482,0.10273254,114480.0,114470.0,1.42851272]
[1759193362683,0.10273254,114480.0,114470.0,2.22711272]
[1759193364983,0.10273254,114480.0,114470.0,2.22707272]
[1759193366087,0.10233254,114480.0,114470.0,2.22707272]
[1759193366386,0.10273254,114480.0,114470.0,2.22707272]
[1759193367176,0.10273254,114480.0,114470.0,1.70042223]
[1759193367177,0.0320903,114480.0,114470.0,1.70042223]
[1759193367381,0.0320903,114480.0,114470.0,2.49898223]
[1759193367687,0.0320903,114480.0,114470.0,2.49894223]
[1759193369188,0.0114,114480.0,114470.0,1.70042223]
[1759193369389,0.0114,114480.0,114470.0,2.49894223]
[1759193369780,0.0004,114480.0,114470.0,2.50594223]
[1759193370187,0.0004,114480.0,114470.0,2.50194223]
[1759193370597,0.0004,114480.0,114470.0,1.70342223]
[1759193370783,0.0004,114480.0,114470.0,2.50194223]
[1759193371283,0.02103399,114480.0,114470.0,2.50194223]
[1759193372092,0.0004,114480.0,114470.0,2.50194223]
[1759193372493,0.0004,114480.0,114470.0,1.70342223]
[1759193372688,0.0004,114480.0,114470.0,2.50190223]
[1759193374283,0.42973654,114490.0,114480.0,0.1223061]
[1759193374485,0.06813654,114490.0,114480.0,0.93803463]
[1759193374689,0.54626794,114500.0,114490.0,0.1222985]
[1759193374984,0.56690511,114500.0,114490.0,1.46459752]
[1759193375691,0.56690511,114500.0,114490.0,0.66611752]
[1759193375892,0.56690511,114500.0,114490.0,1.46459752]
[1759193376093,0.56690511,114500.0,114490.0,0.9207785]
[1759193376389,0.57390511,114500.0,114490.0,0.66611752]
[1759193376890,0.57390511,114500.0,114490.0,1.46455752]
[1759193377994,0.64295026,114500.0,114490.0,0.66611752]
[1759193378196,0.64295026,114500.0,114490.0,1.46455752]
[1759193380296,0.55566926,114500.0,114490.0,0.66611752]
[1759193380498,0.55566926,114500.0,114490.0,1.46451752]
[1759193384102,0.16338899,114500.0,114490.0,1.73642703]
[1759193384401,0.07410667,114500.0,114490.0,2.13642703]
[1759193384602,0.07370667,114500.0,114490.0,2.13642703]
[1759193384803,0.07410667,114500.0,114490.0,2.13642703]
[1759193384989,0.07410667,114500.0,114490.0,2.13638703]
[1759193385604,0.07370667,114500.0,114490.0,2.13638703]
[1759193385804,0.07410667,114500.0,114490.0,2.13638703]
[1759193386004,0.07370667,114500.0,114490.0,2.18331803]
[1759193386196,0.36164,114520.0,114510.0,0.0999632]
[1759193386399,1.39375474,114540.0,114530.0,0.122268]
[1759193386600,1.38367,114540.0,114530.0,0.66608702]
[1759193386797,1.36124,114540.0,114530.0,0.66608702]
[1759193387003,1.36084,114540.0,114530.0,1.46444702]
[1759193387198,1.36084,114540.0,114530.0,1.33799653]
[1759193387199,1.00044,114540.0,114530.0,1.33799653]
[1759193387505,0.46732618,114540.0,114530.0,1.33799653]
[1759193387710,0.46772618,114540.0,114530.0,2.13631653]
[1759193387900,0.46772618,114540.0,114530.0,1.06608702]
[1759193388101,0.46772618,114540.0,114530.0,1.86440702]
[1759193388307,0.46772618,114540.0,114530.0,1.33799653]
[1759193388509,0.46732618,114540.0,114530.0,1.33799653]
[1759193388700,0.46772618,114540.0,114530.0,1.33799653]
[1759193388900,0.46772618,114540.0,114530.0,2.49707653]
[1759193389095,0.46132618,114540.0,114530.0,2.49707653]
[1759193389402,0.01381,114560.0,114550.0,0.0872427]
[1759193389608,4e-05,114560.0,114550.0,1.42930172]
[1759193389800,0.01341,114560.0,114550.0,1.42930172]
[1759193389995,0.03467,114560.0,114550.0,0.63106172]
[1759193390202,0.01341,114560.0,114550.0,1.42930172]
[1759193390600,0.01301,114560.0,114550.0,0.63106172]
[1759193390808,0.01541,114560.0,114550.0,1.42926172]
[1759193391308,0.01541,114560.0,114550.0,0.63106172]
[1759193391606,0.03667,114560.0,114550.0,1.42922172]
[1759193392208,0.01541,114560.0,114550.0,1.42922172]
[1759193392603,0.01501,114560.0,114550.0,1.42922172]
[1759193392805,0.01541,114560.0,114550.0,1.42922172]
[1759193393202,0.01541,114560.0,114550.0,0.63106172]
[1759193393404,0.03667,114560.0,114550.0,1.15723221]
[1759193393904,0.03667,114560.0,114550.0,1.42914172]
[1759193394510,0.01501,114560.0,114550.0,1.42914172]
[1759193394715,0.01541,114560.0,114550.0,1.42914172]
[1759193395013,0.01501,114560.0,114550.0,1.42914172]
[1759193395213,0.01541,114560.0,114550.0,1.42914172]
[1759193398913,0.01541,114560.0,114550.0,1.42898172]
[1759193398914,0.03667,114560.0,114550.0,1.42898172]
[1759193399114,0.01541,114560.0,114550.0,1.42898172]
[1759193400113,0.00204,114560.0,114550.0,1.42898172]
[1759193400411,0.00244,114560.0,114550.0,1.42898172]
[1759193400613,0.01541,114560.0,114550.0,1.42898172]
[1759193402615,0.01541,114560.0,114550.0,0.63106172]
[1759193402916,0.03667,114560.0,114550.0,1.42894172]
[1759193403414,0.03667,114560.0,114550.0,1.42890172]
[1759193404919,0.01541,114560.0,114550.0,1.42890172]
[1759193406015,0.01541,114560.0,114550.0,0.8850827]
[1759193406409,0.03667,114560.0,114550.0,1.42890172]
[1759193406717,0.03667,114560.0,114550.0,0.63106172]
[1759193407015,0.03667,114560.0,114550.0,1.42882172]
[1759193407216,0.03667,114560.0,114550.0,0.63106172]
[1759193407421,0.03667,114560.0,114550.0,1.42882172]
[1759193407716,0.01541,114560.0,114550.0,1.42882172]
[1759193410120,0.3608,114570.0,114560.0,0.0872351]
[1759193410317,0.0008,114580.0,114570.0,0.0872275]
[1759193410512,0.01289,114590.0,114580.0,0.0872198]
[1759193410811,0.01297,114600.0,114580.0,1.26374593]
[1759193410812,0.09940215,114600.0,114580.0,1.26374593]
[1759193411017,0.12066175,114600.0,114590.0,1.34153902]
[1759193411406,0.09940175,114600.0,114590.0,1.70233902]
[1759193411610,0.0872046,114600.0,114590.0,1.70233902]
[1759193411817,0.1005746,114600.0,114590.0,1.70233902]
[1759193412020,0.1214346,114600.0,114590.0,0.54381902]
[1759193412208,0.1218346,114600.0,114590.0,0.27190951]
[1759193412520,0.1218346,114600.0,114580.0,0.63270951]
[1759193412521,0.1214422,114590.0,114580.0,0.63270951]
[1759193412907,0.1086544,114590.0,114580.0,0.63270951]
[1759193413113,0.0214422,114590.0,114580.0,1.43038951]
[1759193413417,0.0214422,114590.0,114580.0,1.51760931]
[1759193413618,0.4214422,114590.0,114580.0,0.4480198]
[1759193413815,0.0214422,114590.0,114580.0,1.78951882]
[1759193414021,0.01297,114600.0,114590.0,0.0872122]
[1759193414215,0.01377,114600.0,114590.0,0.99183122]
[1759193414615,0.02977,114600.0,114590.0,0.99183122]
[1759193415617,0.01377,114600.0,114590.0,0.99183122]
[1759193415819,0.0058,114600.0,114590.0,0.99183122]
[1759193416120,0.0008,114600.0,114590.0,0.99183122]
[1759193416321,0.0108,114600.0,114590.0,0.99183122]
[1759193416519,0.0871981,114610.0,114590.0,0.90461902]
[1759193416719,0.0016,114630.0,114620.0,0.0871894]
[1759193417017,1.01346,114640.0,114630.0,0.0871818]
[1759193417321,1.01346,114640.0,114630.0,0.90461902]
[1759193417519,1.1006342,114640.0,114630.0,0.90461902]
[1759193417721,1.03535,114640.0,114630.0,1.70813902]
[1759193418115,1.01386,114640.0,114630.0,1.79532082]
[1759193418423,0.20339606,114640.0,114630.0,1.38203078]
[1759193418619,0.20339606,114640.0,114630.0,1.29479739]
[1759193418817,0.20339606,114640.0,114630.0,2.49879739]
[1759193419019,0.20299606,114640.0,114630.0,2.49879739]
[1759193419222,0.01342163,114640.0,114630.0,2.58603078]
[1759193419520,0.01346,114660.0,114650.0,0.0871666]
[1759193419721,0.01346,114660.0,114650.0,1.65547457]
[1759193419922,0.01346,114660.0,114650.0,3.27846604]
[1759193420120,0.01748099,114670.0,114660.0,0.087159]
[1759193420323,0.3604,114720.0,114700.0,0.01]
[1759193420523,0.01377,114730.0,114720.0,0.0871134]
[1759193420822,0.01211851,114730.0,114720.0,0.0871134]
[1759193421019,0.01211851,114730.0,114720.0,1.81632708]
[1759193421225,1.0017,114740.0,114730.0,0.0871058]
[1759193421418,0.0733174,114810.0,114760.0,0.12252111]
[1759193421622,0.0733174,114810.0,114780.0,0.12250551]
[1759193421623,0.01373,114800.0,114780.0,0.12250551]
[1759193421826,0.01373,114790.0,114780.0,0.12250551]
[1759193422121,0.01373,114790.0,114780.0,1.37801922]
[1759193422423,0.01373,114790.0,114780.0,0.03543841]
[1759193422627,0.01373,114800.0,114780.0,0.50433602]
[1759193422815,0.01413,114790.0,114780.0,0.1225578]
[1759193423121,0.01373,114790.0,114780.0,0.12250621]
[1759193423312,0.41413,114790.0,114780.0,0.03543841]
[1759193423518,0.01413,114790.0,114780.0,0.12250621]
[1759193424017,0.01373,114790.0,114780.0,0.6403039]
[1759193424218,0.01413,114790.0,114780.0,0.0870678]
[1759193424419,0.01413,114790.0,114780.0,0.7216]
[1759193424613,0.90843,114790.0,114780.0,0.7216]
[1759193424812,0.01373,114800.0,114790.0,0.0870602]
[1759193425012,0.01373,114800.0,114790.0,0.4478602]
[1759193425212,0.01373,114800.0,114790.0,0.78373621]
[1759193425213,0.01413,114800.0,114790.0,0.78373621]
[1759193425525,0.01373,114800.0,114790.0,1.2846201]
[1759193425725,0.01413,114800.0,114790.0,0.78373621]
[1759193425917,0.01413,114800.0,114790.0,0.4478602]
[1759193426124,0.01413,114800.0,114790.0,0.8478602]
[1759193426921,0.01413,114800.0,114790.0,1.18973621]
[1759193427221,0.01413,114800.0,114790.0,0.4538602]
[1759193427628,0.76863009,114800.0,114790.0,0.3668]
[1759193427832,0.79196009,114800.0,114790.0,0.3708]
[1759193428121,1.98245601,114800.0,114770.0,0.3608]
[1759193428327,0.03706,114760.0,114750.0,0.3608]
[1759193428622,0.03706,114760.0,114740.0,9.811e-05]
[1759193428623,0.01373,114750.0,114740.0,9.811e-05]
[1759193428820,0.41373,114750.0,114740.0,9.811e-05]
[1759193429016,0.40373,114750.0,114740.0,9.811e-05]
[1759193429216,0.40373,114750.0,114730.0,0.0871041]
[1759193429522,0.01373,114720.0,114710.0,0.447919]
[1759193429724,0.01373,114720.0,114700.0,0.3708]
[1759193429920,0.37453,114720.0,114710.0,0.0871208]
[1759193430121,0.01373,114720.0,114710.0,0.12255921]
[1759193430430,1.1105061,114720.0,114710.0,0.03543841]
[1759193430725,0.37463009,114720.0,114710.0,0.13255921]
[1759193431222,0.01183009,114720.0,114710.0,0.45843522]
[1759193431528,0.01223009,114720.0,114710.0,0.81923522]
[1759193431730,0.01183009,114720.0,114710.0,1.66859522]
[1759193431933,0.01373,114730.0,114720.0,0.0871126]
[1759193431934,0.01288925,114730.0,114720.0,0.0871126]
[1759193432223,0.01328925,114730.0,114720.0,0.4479126]
[1759193432431,0.41328925,114730.0,114720.0,0.4479126]
[1759193432826,0.01328925,114730.0,114720.0,0.81922702]
[1759193433030,0.01288925,114730.0,114720.0,2.06958702]
[1759193433218,0.01244585,114740.0,114730.0,0.087105]
[1759193433524,0.01373,114770.0,114760.0,0.12252061]
[1759193433727,0.01373,114780.0,114770.0,0.0870746]
[1759193434028,0.01373,114780.0,114770.0,1.2993946]
[1759193434229,0.01373,114780.0,114770.0,1.63527061]
[1759193434423,1e-07,114780.0,114770.0,2.03527061]
[1759193434832,1e-07,114780.0,114770.0,1.18375061]
[1759193435022,1e-07,114780.0,114770.0,0.78375061]
[1759193435222,0.0004001,114780.0,114770.0,0.3608]
[1759193435418,0.4004001,114780.0,114770.0,0.39623841]
[1759193435622,0.4004001,114780.0,114770.0,1.33575401]
[1759193436032,0.4000001,114780.0,114770.0,1.25351841]
[1759193436430,0.0004001,114780.0,114770.0,1.67647002]
[1759193436634,0.0004001,114780.0,114770.0,1.67147002]
[1759193436928,0.0164001,114780.0,114770.0,1.67147002]
[1759193437121,0.0160001,114780.0,114770.0,1.67147002]
[1759193437325,0.0164001,114780.0,114770.0,1.67147002]
[1759193437540,0.0014001,114780.0,114770.0,1.67147002]
[1759193437731,0.0014001,114780.0,114770.0,2.07147002]
[1759193437924,0.0014001,114780.0,114770.0,1.21919002]
[1759193438126,0.0010001,114780.0,114770.0,1.33611401]
[1759193438326,0.0054001,114780.0,114770.0,0.48331401]
[1759193438629,0.0054001,114780.0,114770.0,1.33595401]
[1759193439133,0.4054001,114780.0,114770.0,0.39623841]
[1759193439433,0.0004001,114780.0,114770.0,0.03543841]
[1759193439622,0.0084001,114780.0,114770.0,0.03543841]
[1759193439825,0.4874674,114780.0,114770.0,0.03543841]
[1759193440128,0.1008125,114760.0,114750.0,0.3608]
[1759193440333,0.1008201,114750.0,114740.0,0.03543841]
[1759193440529,0.8616201,114750.0,114740.0,0.03543841]
[1759193440930,0.01373,114740.0,114730.0,0.9392254]
[1759193441235,0.01373,114740.0,114730.0,0.9392258]
[1759193441436,0.01373,114740.0,114730.0,0.97466421]
[1759193441938,0.01373,114740.0,114730.0,1.67134022]
[1759193442122,0.01413,114740.0,114730.0,1.67134022]
[1759193442540,0.01373,114740.0,114730.0,2.07134022]
[1759193442831,0.01413,114740.0,114730.0,1.21922022]
[1759193443130,0.02573,114740.0,114730.0,0.48334421]
[1759193443432,0.02613,114740.0,114730.0,0.39623841]
[1759193443734,0.42613,114740.0,114730.0,1.25059841]
[1759193443934,0.42613,114740.0,114730.0,0.39623841]
[1759193444136,0.42613,114740.0,114730.0,1.21492]
[1759193444332,0.01373,114730.0,114720.0,1.3027502]
[1759193444532,0.01373,114730.0,114720.0,1.3026702]
[1759193444738,0.41373,114730.0,114720.0,1.21556]
[1759193444934,0.01373,114730.0,114720.0,1.63854951]
[1759193445134,0.01373,114730.0,114720.0,1.99934951]
[1759193445332,0.01413,114730.0,114720.0,1.99934951]
[1759193445538,0.01373,114730.0,114720.0,2.39934951]
[1759193445837,0.01713,114730.0,114720.0,2.39934951]
[1759193446031,0.01413,114730.0,114720.0,2.39934951]
[1759193446229,0.02113,114730.0,114720.0,2.39934951]
[1759193446428,0.01373,114740.0,114730.0,0.0871059]
[1759193446731,0.0016,114770.0,114730.0,0.0871059]
[1759193446732,0.01373,114770.0,114760.0,0.0870832]
[1759193446932,0.01373,114770.0,114760.0,1.3456032]
[1759193447138,0.01373,114770.0,114760.0,1.68147921]
[1759193447336,0.01373,114770.0,114760.0,1.3456032]
[1759193447637,0.01373,114780.0,114770.0,0.0870756]
[1759193447843,0.01373,114780.0,114770.0,0.11014871]
[1759193448141,0.01373,114780.0,114770.0,0.56431527]
[1759193448439,0.01373,114790.0,114780.0,0.087068]
[1759193448632,0.01318,114780.0,114770.0,0.16431327]
[1759193448829,0.01618,114780.0,114770.0,1.01464947]
[1759193449029,0.01618,114780.0,114770.0,1.05008788]
[1759193449228,0.01277175,114780.0,114770.0,1.46553581]
[1759193449430,0.01277175,114780.0,114770.0,2.19513581]
[1759193449629,0.01358,114790.0,114780.0,0.087068]
[1759193449829,0.01358,114790.0,114780.0,0.8787002]
[1759193450029,0.01318,114790.0,114780.0,1.21457621]
[1759193450233,0.01318,114790.0,114780.0,0.3916322]
[1759193450234,0.01358,114790.0,114780.0,0.3916322]
[1759193450635,0.01358,114790.0,114780.0,0.38394089]
[1759193450836,0.41358,114790.0,114780.0,0.3608]
[1759193451240,0.77438,114790.0,114780.0,0.001]
[1759193451832,0.01318,114780.0,114770.0,0.39623841]
[1759193452134,0.01318,114780.0,114770.0,0.4193793]
[1759193452332,0.01318,114780.0,114770.0,0.39623841]
[1759193452531,0.01318,114770.0,114760.0,0.69667601]
[1759193452734,0.01318,114770.0,114760.0,0.03543841]
[1759193452938,0.01318,114760.0,114750.0,0.39623841]
[1759193453239,0.41318,114760.0,114740.0,0.39623841]
[1759193453445,0.41318,114750.0,114740.0,0.39623841]
[1759193453737,0.41318,114750.0,114740.0,0.03543841]
[1759193454443,0.01318,114750.0,114740.0,0.73211442]
[1759193454635,0.01358,114750.0,114740.0,0.81921332]
[1759193454837,0.01358,114750.0,114740.0,0.82021332]
[1759193455035,0.01358,114750.0,114740.0,0.48433731]
[1759193455436,0.01558,114750.0,114740.0,0.84235421]
[1759193455639,0.01518,114750.0,114740.0,1.77283421]
[1759193455946,0.41558,114750.0,114740.0,1.4369572]
[1759193456136,0.01558,114750.0,114740.0,1.77283321]
[1759193456337,0.02458,114750.0,114740.0,1.77283321]
[1759193456537,0.02418,114750.0,114740.0,1.77283321]
[1759193456737,0.02458,114750.0,114740.0,1.80366541]
[1759193456944,0.02418,114750.0,114740.0,1.80366541]
[1759193457139,0.02458,114750.0,114740.0,1.80366541]
[1759193457647,0.41558,114750.0,114740.0,1.31410089]
[1759193457945,0.41558,114750.0,114740.0,1.6499769]
[1759193458146,0.41358,114750.0,114740.0,0.7198169]
[1759193458341,0.41458,114750.0,114740.0,0.95654089]
[1759193458647,0.41458,114750.0,114740.0,0.004]
[1759193458838,0.41358,114750.0,114740.0,0.92944]
[1759193459038,0.5006706,114750.0,114740.0,0.001]
[1759193459238,0.8614706,114750.0,114740.0,0.001]
[1759193459547,0.1002782,114740.0,114730.0,7.267e-05]
[1759193459739,0.79695421,114740.0,114730.0,7.267e-05]
[1759193459938,0.4610782,114740.0,114730.0,7.267e-05]
[1759193460338,0.79695421,114740.0,114730.0,7.267e-05]
[1759193460651,0.01318,114710.0,114700.0,0.39394089]
[1759193460946,0.01318,114710.0,114700.0,0.01]
[1759193461649,0.01325267,114710.0,114700.0,0.4579287]
[1759193462146,0.01365267,114710.0,114700.0,0.79680471]
[1759193462540,0.01325267,114710.0,114700.0,0.79380471]
[1759193462747,0.01398,114720.0,114710.0,0.12255951]
[1759193462945,0.01318,114730.0,114710.0,1.75283552]
[1759193463143,0.01318,114730.0,114720.0,0.8377626]
[1759193463343,0.01318,114730.0,114720.0,0.8069304]
[1759193463549,0.01318,114730.0,114720.0,0.86096551]
[1759193463749,0.01358,114730.0,114720.0,1.77165658]
[1759193463942,0.01358,114730.0,114720.0,1.34938707]
[1759193464137,0.01358,114730.0,114720.0,1.4133057]
[1759193464344,0.01358,114730.0,114720.0,1.74918171]
[1759193464550,0.01318,114730.0,114720.0,1.71834951]
[1759193464750,0.01358,114730.0,114720.0,1.71834951]
[1759193465150,0.01358,114730.0,114720.0,0.78378951]
[1759193465351,0.01658,114730.0,114720.0,1.71770951]
[1759193465544,0.01658,114730.0,114720.0,1.71758951]
[1759193465943,0.01658,114730.0,114720.0,1.74852028]
[1759193466151,0.01358,114730.0,114720.0,1.79486408]
[1759193466348,0.01358,114730.0,114720.0,1.76393331]
[1759193466551,0.01418,114730.0,114720.0,1.76393331]
[1759193466747,0.001,114730.0,114720.0,1.76393331]
[1759193466950,0.01318,114740.0,114730.0,0.12254431]
[1759193467246,0.01318,114740.0,114730.0,0.88210049]
[1759193467646,0.01358,114740.0,114730.0,1.81630049]
[1759193468042,0.01358,114740.0,114730.0,1.81594049]
[1759193468449,0.01318,114750.0,114740.0,0.0870983]
[1759193468650,0.01318,114760.0,114750.0,0.03543841]
[1759193468651,0.01398,114760.0,114750.0,0.03543841]
[1759193468853,0.01398,114760.0,114730.0,0.26360475]
[1759193469150,0.01398,114760.0,114750.0,0.06636327]
[1759193469355,0.01398,114760.0,114750.0,0.03543841]
[1759193469649,0.01398,114760.0,114750.0,0.05864293]
[1759193469840,0.01598,114760.0,114750.0,0.05864293]
[1759193470243,0.01598,114760.0,114750.0,0.80697123]
[1759193470449,0.01518,114760.0,114750.0,0.83789609]
[1759193470651,0.01558,114760.0,114750.0,0.86107887]
[1759193470854,0.01358,114760.0,114750.0,0.86107887]
[1759193471151,0.01318,114770.0,114760.0,0.0870831]
[1759193471447,0.0008,114780.0,114770.0,0.0870756]
[1759193471649,0.01318,114790.0,114780.0,0.087068]
[1759193471851,0.01398,114790.0,114780.0,1.80215068]
[1759193472147,0.01398,114790.0,114780.0,1.75616355]
[1759193472348,0.00070666,114790.0,114780.0,2.20251068]
[1759193472554,0.01318,114800.0,114790.0,0.0870604]
[1759193472746,0.01318,114800.0,114790.0,0.83008354]
[1759193472941,0.01318,114800.0,114790.0,0.78373641]
[1759193473146,0.01358,114800.0,114790.0,0.83005066]
[1759193473544,0.01358,114800.0,114790.0,0.89417465]
[1759193473744,0.01358,114800.0,114790.0,0.49417465]
[1759193473944,0.01358,114800.0,114790.0,1.80219266]
[1759193474247,0.01358,114800.0,114790.0,2.15587841]
[1759193474550,0.01318,114800.0,114790.0,2.15587841]
[1759193474744,0.01358,114800.0,114790.0,0.81459841]
[1759193474951,0.01358,114800.0,114790.0,1.4208824]
[1759193475150,0.01358,114800.0,114790.0,1.79219682]
[1759193475347,0.01358,114800.0,114790.0,0.85103682]
[1759193475655,0.41758,114800.0,114790.0,0.42710041]
[1759193475850,0.41758,114800.0,114790.0,0.06630041]
[1759193476046,0.01758,114800.0,114790.0,0.84231393]
[1759193476348,0.01758,114800.0,114790.0,0.81917492]
[1759193476547,0.02318,114800.0,114790.0,0.50393792]
[1759193476747,0.02358,114800.0,114790.0,0.83981393]
[1759193477450,0.02358,114800.0,114790.0,0.50393792]
[1759193477747,0.42358,114800.0,114790.0,0.41687742]
[1759193478047,0.01363,114790.0,114780.0,0.38393901]
[1759193478252,0.01363,114790.0,114780.0,1.32761901]
[1759193478448,0.41363,114790.0,114780.0,0.4478684]
[1759193478958,0.41363,114790.0,114780.0,0.3608]
[1759193479148,0.01385,114780.0,114770.0,0.48081051]
[1759193479447,0.1009184,114780.0,114770.0,0.39373841]
[1759193479654,0.01385,114770.0,114760.0,1.3904036]
[1759193479850,0.01285,114770.0,114760.0,0.48082201]
[1759193480152,0.01285,114770.0,114760.0,0.12002201]
[1759193480654,0.01285,114770.0,114760.0,0.81669802]
[1759193481151,0.00725,114770.0,114760.0,0.48082201]
[1759193481448,0.00725,114770.0,114760.0,1.42322201]
[1759193481651,0.00725,114770.0,114760.0,1.42326201]
[1759193481849,0.83020201,114770.0,114760.0,0.05607742]
[1759193482049,0.1009336,114760.0,114740.0,0.030862]
[1759193482244,0.01385,114750.0,114720.0,0.25781925]
[1759193482440,0.01385,114730.0,114720.0,0.298619]
[1759193482844,0.01385,114730.0,114720.0,0.659419]
[1759193482845,0.01335,114730.0,114720.0,0.659419]
[1759193483246,0.11335,114730.0,114720.0,0.659419]
[1759193483846,0.12235,114730.0,114720.0,0.659419]
[1759193484048,0.12235,114730.0,114720.0,0.99529501]
[1759193484447,0.11375,114730.0,114720.0,0.99529501]
[1759193484752,0.1124,114730.0,114720.0,0.99529501]
[1759193484958,0.112,114730.0,114720.0,1.36443301]
[1759193485251,0.1124,114730.0,114720.0,1.36443301]
[1759193485450,0.1124,114730.0,114720.0,1.41079532]
[1759193486251,0.1124,114730.0,114720.0,1.1370645]
[1759193486752,0.1004,114730.0,114720.0,1.1370645]
[1759193486956,0.1224,114730.0,114720.0,1.1370645]
[1759193487548,0.11425,114730.0,114720.0,1.8603845]
[1759193487755,0.13025,114730.0,114720.0,1.8603845]
[1759193487956,0.13025,114730.0,114720.0,1.89129505]
[1759193488455,0.13025,114730.0,114720.0,1.89121505]
[1759193488860,0.13025,114730.0,114720.0,1.8603045]
[1759193489760,0.13025,114730.0,114720.0,1.84485362]
[1759193490359,0.13025,114730.0,114720.0,0.90185362]
[1759193490556,0.13025,114730.0,114720.0,1.89121593]
[1759193490953,0.13025,114730.0,114720.0,1.8603045]
[1759193491154,0.13025,114730.0,114720.0,0.49435931]
[1759193491356,0.15231,114730.0,114720.0,0.94823888]
[1759193491554,0.15231,114730.0,114720.0,1.8577445]
[1759193491951,0.55231,114730.0,114720.0,1.88867863]
[1759193492160,0.55231,114730.0,114720.0,0.47893113]
[1759193492455,0.55231,114730.0,114720.0,1.84235632]
[1759193493065,0.55343358,114730.0,114720.0,1.84235632]
[1759193493562,0.13193537,114730.0,114720.0,1.84235632]
[1759193494065,0.13249716,114730.0,114720.0,1.84235632]
[1759193494359,0.13209716,114730.0,114720.0,1.84235632]
[1759193494566,0.55455716,114730.0,114720.0,0.47893113]
[1759193494756,0.55455716,114730.0,114720.0,1.81046219]
[1759193494957,0.55455716,114730.0,114720.0,1.84139632]
[1759193495161,0.55455716,114730.0,114720.0,1.81046219]
[1759193495754,0.55511895,114730.0,114720.0,1.81046219]
[1759193495960,0.55511895,114730.0,114720.0,0.360883]
[1759193496263,0.55568074,114730.0,114720.0,0.447997]
[1759193496463,0.55568074,114730.0,114720.0,0.360883]
[1759193496658,0.55568074,114730.0,114720.0,0.447997]
[1759193497156,0.71108075,114730.0,114720.0,0.447997]
[1759193497353,0.62397435,114730.0,114720.0,0.447997]
[1759193497867,0.62441809,114730.0,114720.0,0.447997]
[1759193498258,0.71152449,114730.0,114720.0,0.087197]
[1759193498660,1.13446968,114730.0,114720.0,8.3e-05]
[1759193499469,0.73446968,114730.0,114720.0,8.3e-05]
[1759193499969,0.1230316,114710.0,114700.0,0.01]
[1759193500266,0.12729074,114710.0,114700.0,0.0971292]
[1759193500464,0.12729074,114710.0,114700.0,0.01]
[1759193500966,0.55031893,114710.0,114700.0,0.01]
[1759193501166,0.55031893,114710.0,114700.0,0.0971292]
[1759193501367,0.55076359,114710.0,114700.0,0.0971292]
[1759193501569,0.1278184,114710.0,114700.0,0.0971292]
[1759193501759,0.1568184,114710.0,114700.0,0.0971292]
[1759193501963,0.0696968,114710.0,114700.0,0.0971292]
[1759193502163,0.07014146,114710.0,114700.0,0.0971292]
[1759193502765,0.04114146,114710.0,114700.0,0.4579292]
[1759193502962,0.04914146,114710.0,114700.0,0.4579292]
[1759193503163,0.13670782,114710.0,114700.0,0.0971292]
[1759193503564,0.13670782,114710.0,114700.0,0.01]
[1759193504373,0.13725445,114710.0,114700.0,0.01]
[1759193504565,0.56019964,114710.0,114700.0,0.0971294]
[1759193505076,0.56019964,114710.0,114700.0,0.01]
[1759193505368,0.0871446,114680.0,114670.0,0.4479489]
[1759193505670,0.02740725,114670.0,114660.0,0.4479552]
[1759193505859,0.02740725,114670.0,114660.0,1.39647462]
[1759193506065,0.02740725,114670.0,114660.0,0.46123462]
[1759193506270,0.03464026,114670.0,114660.0,0.46123462]
[1759193506465,0.03364026,114670.0,114660.0,0.46123462]
[1759193506769,0.03418689,114670.0,114660.0,0.46123462]
[1759193506967,0.03218689,114670.0,114660.0,0.46123462]
[1759193507164,0.11933909,114670.0,114660.0,0.46523462]
[1759193507360,0.94228428,114670.0,114660.0,0.10443462]
[1759193507569,0.94236728,114670.0,114660.0,0.01727942]
[1759193507867,0.94236728,114670.0,114660.0,0.10043922]
[1759193507868,0.51942209,114670.0,114660.0,0.10043922]
[1759193508066,0.51164245,114670.0,114660.0,0.10743922]
[1759193508270,0.51996872,114670.0,114660.0,0.10743922]
[1759193508465,0.51996872,114670.0,114660.0,0.007]
[1759193508671,0.51996872,114670.0,114660.0,0.0941598]
[1759193508967,0.51996872,114670.0,114660.0,0.007]
[1759193509172,0.94346054,114670.0,114660.0,0.007]
[1759193509479,0.94346054,114670.0,114660.0,0.02018019]
[1759193510173,0.03390978,114670.0,114660.0,0.0941598]
[1759193510365,0.03390978,114670.0,114660.0,0.51710499]
[1759193510560,0.03390978,114670.0,114660.0,0.0941598]
[1759193510767,0.03430978,114670.0,114660.0,0.87790499]
[1759193511058,0.01184978,114670.0,114660.0,1.27790499]
[1759193511262,0.01224978,114670.0,114660.0,2.21070499]
[1759193511464,0.01184978,114670.0,114660.0,2.21070499]
[1759193511664,0.01224978,114670.0,114660.0,2.21070499]
[1759193512370,0.03366978,114670.0,114660.0,0.0941598]
[1759193512971,0.12082248,114670.0,114660.0,0.0941598]
[1759193513162,0.12082248,114670.0,114660.0,0.007]
[1759193513770,0.52082248,114670.0,114660.0,0.007]
[1759193514471,0.01184978,114670.0,114660.0,0.4549603]
[1759193514665,0.03326978,114670.0,114660.0,0.4549603]
[1759193514862,0.03366978,114670.0,114660.0,0.87790549]
[1759193515469,0.12082188,114670.0,114660.0,0.007]
[1759193515669,0.52082188,114670.0,114660.0,0.007]
[1759193518474,0.52082168,114670.0,114660.0,0.007]
[1759193520882,0.94376687,114670.0,114660.0,0.007]
[1759193521075,0.52082168,114670.0,114660.0,0.007]
[1759193522280,0.94376687,114670.0,114660.0,0.007]
[1759193522981,0.52082168,114670.0,114660.0,0.007]
[1759193524079,0.94376687,114670.0,114660.0,0.007]
[1759193524381,0.93526185,114670.0,114660.0,0.02020673]
[1759193524683,0.1218771,114650.0,114640.0,0.36088804]
[1759193524985,0.61305185,114650.0,114640.0,0.36088804]
[1759193525182,0.19010666,114650.0,114640.0,0.36088804]
[1759193525392,0.19345142,114650.0,114640.0,8.804e-05]
[1759193526388,1.01639661,114650.0,114640.0,0.01108804]
[1759193526576,1.01639661,114650.0,114640.0,0.01708804]
[1759193527281,0.1218923,114630.0,114620.0,0.3608]
[1759193527476,0.11105907,114630.0,114620.0,0.3608]
[1759193527681,0.53400426,114630.0,114620.0,0.3608]